Workbook

Sheet 用
A1: 贵阳市发展和改革委员会下属事业单位专业技术岗位专业测试成绩及进入 面试环节人员名单
A2: 序号 | B2: 姓名 | C2: 单位 | D2: 报考岗位及代码 | E2: 笔试成绩 | F2: 笔试成绩（百分制） | G2: 笔试成绩（百分制） | H2: 笔试成绩30% | I2: 专业测试成绩 | J2: 专业测试成绩40% | K2: 笔试、专业测试成绩 | L2: 笔试、专业测试排名 | M2: 是否进入面试
A3: 1 | B3: 文楝 | C3: =VLOOKUP(B3,[1]Sheet1!$A$270:$O$280,4,0) -> 贵阳市能源发展中心 | D3: =VLOOKUP(B3,[1]Sheet1!$A$270:$O$280,5,0) -> 20101001401 | E3: =VLOOKUP(B3,[1]Sheet1!$A$270:$O$280,11,0) -> 212.5 | G3: =ROUND(E3/3,2) -> 70.83 | H3: =ROUND(G3*0.3,2) -> 21.25 | I3: =VLOOKUP(B3,[2]Sheet1!$B$3:$G$12,6,0) -> 82.25 | J3: =I3*0.4 -> 32.9 | K3: =H3+J3 -> 54.15 | L3: 1 | M3: 是
A4: 2 | B4: 田着霖 | C4: =VLOOKUP(B4,[1]Sheet1!$A$270:$O$280,4,0) -> 贵阳市能源发展中心 | D4: =VLOOKUP(B4,[1]Sheet1!$A$270:$O$280,5,0) -> 20101001401 | E4: =VLOOKUP(B4,[1]Sheet1!$A$270:$O$280,11,0) -> 213.5 | G4: =ROUND(E4/3,2) -> 71.17 | H4: =ROUND(G4*0.3,2) -> 21.35 | I4: =VLOOKUP(B4,[2]Sheet1!$B$3:$G$12,6,0) -> 68.75 | J4: =I4*0.4 -> 27.5 | K4: =H4+J4 -> 48.85 | L4: 2 | M4: 是
A5: 3 | B5: 邱有帝 | C5: =VLOOKUP(B5,[1]Sheet1!$A$270:$O$280,4,0) -> 贵阳市能源发展中心 | D5: =VLOOKUP(B5,[1]Sheet1!$A$270:$O$280,5,0) -> 20101001401 | E5: =VLOOKUP(B5,[1]Sheet1!$A$270:$O$280,11,0) -> 201.5 | G5: 67.17 | H5: 20.15 | I5: =VLOOKUP(B5,[2]Sheet1!$B$3:$G$12,6,0) -> 64.5 | J5: 25.8 | K5: 45.95 | L5: 3 | M5: 是
A6: 4 | B6: 周博浩 | C6: =VLOOKUP(B6,[1]Sheet1!$A$270:$O$280,4,0) -> 贵阳市能源发展中心 | D6: =VLOOKUP(B6,[1]Sheet1!$A$270:$O$280,5,0) -> 20101001401 | E6: =VLOOKUP(B6,[1]Sheet1!$A$270:$O$280,11,0) -> 192.5 | G6: 64.17 | H6: 19.25 | I6: =VLOOKUP(B6,[2]Sheet1!$B$3:$G$12,6,0) -> 62.25 | J6: 24.9 | K6: 44.15 | L6: 4
A7: 5 | B7: 刘浩 | C7: =VLOOKUP(B7,[1]Sheet1!$A$270:$O$280,4,0) -> 贵阳市能源发展中心 | D7: =VLOOKUP(B7,[1]Sheet1!$A$270:$O$280,5,0) -> 20101001401 | E7: =VLOOKUP(B7,[1]Sheet1!$A$270:$O$280,11,0) -> 203 | G7: 67.67 | H7: 20.3 | I7: =VLOOKUP(B7,[2]Sheet1!$B$3:$G$12,6,0) -> 56 | J7: 22.4 | K7: 42.7 | L7: 5
A8: 6 | B8: 宦宣宇 | C8: =VLOOKUP(B8,[1]Sheet1!$A$270:$O$280,4,0) -> 贵阳市能源发展中心 | D8: =VLOOKUP(B8,[1]Sheet1!$A$270:$O$280,5,0) -> 20101001401 | E8: =VLOOKUP(B8,[1]Sheet1!$A$270:$O$280,11,0) -> 205 | G8: 68.33 | H8: 20.5 | I8: =VLOOKUP(B8,[2]Sheet1!$B$3:$G$12,6,0) -> 54.75 | J8: 21.9 | K8: 42.4 | L8: 6
A9: 7 | B9: 冉胤 | C9: =VLOOKUP(B9,[1]Sheet1!$A$270:$O$280,4,0) -> 贵阳市能源发展中心 | D9: =VLOOKUP(B9,[1]Sheet1!$A$270:$O$280,5,0) -> 20101001401 | E9: =VLOOKUP(B9,[1]Sheet1!$A$270:$O$280,11,0) -> 195.5 | G9: 65.17 | H9: 19.55 | I9: =VLOOKUP(B9,[2]Sheet1!$B$3:$G$12,6,0) -> 53.25 | J9: 21.3 | K9: 40.85 | L9: 7
A10: 8 | B10: 李雨菡 | C10: =VLOOKUP(B10,[1]Sheet1!$A$270:$O$280,4,0) -> 贵阳市能源发展中心 | D10: =VLOOKUP(B10,[1]Sheet1!$A$270:$O$280,5,0) -> 20101001401 | E10: =VLOOKUP(B10,[1]Sheet1!$A$270:$O$280,11,0) -> 190.5 | G10: 63.5 | H10: 19.05 | I10: =VLOOKUP(B10,[2]Sheet1!$B$3:$G$12,6,0) -> 52 | J10: 20.8 | K10: 39.85 | L10: 8
A11: 9 | B11: 苟鸿浩 | C11: =VLOOKUP(B11,[1]Sheet1!$A$270:$O$280,4,0) -> 贵阳市能源发展中心 | D11: =VLOOKUP(B11,[1]Sheet1!$A$270:$O$280,5,0) -> 20101001401 | E11: =VLOOKUP(B11,[1]Sheet1!$A$270:$O$280,11,0) -> 204.5 | G11: 68.17 | H11: 20.45 | I11: =VLOOKUP(B11,[2]Sheet1!$B$3:$G$12,6,0) -> 0 | J11: 0 | K11: 20.45 | L11: 9 | M11: 专业测试缺考
A12: 10 | B12: 何旭 | C12: =VLOOKUP(B12,[1]Sheet1!$A$270:$O$280,4,0) -> 贵阳市能源发展中心 | D12: =VLOOKUP(B12,[1]Sheet1!$A$270:$O$280,5,0) -> 20101001401 | E12: =VLOOKUP(B12,[1]Sheet1!$A$270:$O$280,11,0) -> 203.5 | G12: 67.83 | H12: 20.35 | I12: =VLOOKUP(B12,[2]Sheet1!$B$3:$G$12,6,0) -> 0 | J12: 0 | K12: 20.35 | L12: 10 | M12: 专业测试缺考
